bitfinex/quotes_ETHUSD_20220105
["timestamp","ask_amount","ask_price","bid_price","bid_amount"]
[1641376199945,4.25302571,3833.6,3832.8,1.43968203]
[1641376200144,4.55302571,3833.6,3832.9,0.31421059]
[1641376200348,0.65231,3833.3,3832.9,0.31421059]
[1641376200545,0.3,3833.6,3833.0,0.379]
[1641376200987,1.30451,3833.9,3833.2,0.6522371]
[1641376201195,1.30451,3833.9,3833.1,0.01307374]
[1641376201393,1.30451,3833.9,3833.3,0.0119369]
[1641376201596,0.65226,3833.7,3833.1,1.31757934]
[1641376201796,1.60448,3833.8,3833.1,1.31757934]
[1641376201995,1.60448,3833.8,3833.2,0.31250532]
[1641376202197,1.35630364,3833.6,3833.2,0.31250532]
[1641376202399,2.00857364,3833.6,3833.3,0.0119369]
[1641376202594,0.65225,3833.5,3833.3,0.0119369]
[1641376202795,0.65225,3833.5,3832.9,0.01421059]
[1641376202995,1.65630364,3833.6,3833.1,0.01307374]
[1641376203195,1.65630364,3833.6,3832.9,0.01421059]
[1641376203598,1.30458,3833.3,3832.9,0.01421059]
[1641376203795,1.30458,3833.3,3833.0,1.3045388]
[1641376203996,1.60458,3833.3,3833.1,0.3]
[1641376204197,1.60458,3833.3,3833.1,0.31307374]
[1641376204396,1.60458,3833.3,3833.2,0.01250532]
[1641376204644,0.9523,3833.3,3833.2,0.01250532]
[1641376206245,0.3,3833.3,3833.2,0.01250532]
[1641376206443,3.9807,3834.8,3833.2,0.01250532]
[1641376206643,0.0557,3834.3,3833.3,0.379]
[1641376206844,0.0557,3834.3,3833.4,1.3042722]
[1641376207042,0.0557,3834.3,3833.5,1.03115]
[1641376207246,0.0557,3834.3,3833.5,1.34195005]
[1641376207448,1.21274812,3834.1,3833.6,0.66235843]
[1641376207644,0.65219,3833.8,3833.6,1.04135843]
[1641376207845,1.21274812,3834.1,3833.7,0.3096632]
[1641376208044,1.21274812,3834.1,3833.7,2.2660911]
[1641376208248,0.8430081,3833.9,3833.8,2.90909478]
[1641376208496,0.8430081,3833.9,3833.8,0.00909478]
[1641376210900,1.1430081,3833.9,3833.8,0.00909478]
[1641376212637,1.1430081,3833.9,3833.7,0.0096632]
[1641376212834,2.4475481,3833.9,3833.7,0.0096632]
[1641376213440,5.66421526,3833.9,3833.7,0.0096632]
[1641376213641,2.4475481,3833.9,3833.7,0.0096632]
[1641376214041,2.4475481,3833.9,3833.6,0.31023163]
[1641376214242,2.94804514,3833.8,3833.7,0.0096632]
[1641376214845,0.65229,3833.6,3833.2,0.01250532]
[1641376215044,1.16171842,3833.4,3833.3,0.6522788]
[1641376215443,1.16171842,3833.4,3833.3,0.6642157]
[1641376216317,0.65229,3833.7,3833.3,0.6642157]
[1641376216517,0.65229,3833.7,3833.4,1.3043613]
[1641376216716,0.65229,3833.7,3833.4,1.31572977]
[1641376216918,0.65229,3833.7,3833.5,0.01080005]
[1641376217519,1.06479184,3833.6,3833.5,0.01080005]
[1641376220649,0.65229,3833.7,3833.5,0.01080005]
[1641376220849,1.7951681,3833.9,3833.5,0.38980005]
[1641376221049,0.8430081,3833.9,3833.5,0.38980005]
[1641376221248,0.8430081,3833.9,3833.6,0.01023163]
[1641376221447,0.8430081,3833.9,3833.7,0.379]
[1641376221848,0.8430081,3833.9,3833.8,4.20909478]
[1641376222048,0.8430081,3833.9,3833.8,0.38809478]
[1641376223388,3.79097333,3833.9,3833.8,0.38809478]
[1641376223594,3.74676153,3833.9,3833.8,0.38809478]
[1641376223992,0.7987963,3833.9,3833.8,0.38809478]
[1641376225192,3.74688585,3833.9,3833.8,0.38809478]
[1641376226992,0.7987963,3833.9,3833.8,0.38809478]
[1641376227647,0.7987963,3833.9,3833.8,3.51962051]
[1641376229152,0.7987963,3833.9,3833.8,4.17174051]
[1641376231192,0.7987963,3833.9,3833.8,19.45174051]
[1641376231593,0.7987963,3833.9,3833.8,20.45174051]
[1641376231795,1.32481101,3835.1,3833.9,6.3]
[1641376231993,1.32481101,3835.1,3834.5,0.65193]
[1641376232194,0.01014768,3835.2,3834.6,0.379]
[1641376232394,0.01014768,3835.2,3834.6,0.38354739]
[1641376232593,0.01014768,3835.2,3834.7,1.3038763]
[1641376232793,0.01014768,3835.2,3834.8,0.379]
[1641376232794,2.95010159,3835.1,3834.8,0.379]
[1641376233196,0.00227369,3835.0,3834.8,0.379]
[1641376233597,0.00170527,3834.9,3834.8,0.379]
[1641376233997,0.00227369,3834.9,3834.8,0.379]
[1641376236045,2.94953316,3834.9,3834.8,0.379]
[1641376236843,3.24953316,3834.9,3834.7,1.3038763]
[1641376237245,0.00113685,3834.8,3834.1,0.90802514]
[1641376237544,1.30436,3834.6,3834.3,0.6521681]
[1641376237946,2.62320086,3834.6,3834.4,0.00113685]
[1641376238898,2.94725947,3834.5,3834.4,0.00113685]
[1641376239297,2.94725947,3834.5,3834.3,0.00170527]
[1641376241402,2.94725947,3834.5,3834.3,0.65385357]
[1641376241600,2.94725947,3834.5,3834.4,4.179]
[1641376241801,2.94725947,3834.5,3834.4,4.18013685]
[1641376242001,0.00113685,3834.8,3834.4,4.18013685]
[1641376242542,0.00113685,3834.8,3834.4,0.38013685]
[1641376242741,0.00113685,3834.8,3834.5,0.6519783]
[1641376242943,0.00113685,3834.8,3834.6,0.65198]
[1641376243443,2.60113685,3834.8,3834.6,0.65198]
[1641376243645,2.60113685,3834.8,3834.7,3.08200352]
[1641376244250,2.60113685,3834.8,3834.6,0.65198]
[1641376244450,2.60113685,3834.8,3834.6,3.70165712]
[1641376244650,2.60113685,3834.8,3834.6,0.65198]
[1641376244848,2.60113685,3834.8,3834.5,1.0309783]
[1641376245049,2.90113685,3834.8,3834.5,0.6519783]
[1641376245652,1.17375832,3834.7,3834.5,0.6519783]
[1641376245898,4.12130651,3834.7,3834.5,0.6519783]
[1641376247104,4.12130651,3834.7,3834.5,0.9519783]
[1641376247296,2.94754819,3834.7,3834.5,0.9519783]
[1641376247697,2.94754819,3834.6,3834.5,0.9519783]
[1641376248896,4.4621303,3834.7,3834.5,0.9519783]
[1641376249297,2.94754819,3834.6,3834.5,0.9519783]
[1641376252543,6.16962691,3834.6,3834.5,0.9519783]
[1641376252945,6.16962691,3834.6,3834.4,0.00113685]
[1641376253148,3.49144371,3834.5,3834.4,0.00113685]
[1641376253799,6.4389919,3834.5,3834.4,0.00113685]
[1641376254001,6.4389919,3834.5,3833.8,0.00454739]
[1641376254199,0.65218,3834.2,3833.8,0.00454739]
[1641376254798,0.65218,3834.2,3834.0,0.9190242]
[1641376255200,1.60435,3834.3,3834.1,0.00284212]
[1641376256909,1.30435,3834.3,3834.1,0.00284212]
[1641376257140,1.30435,3834.3,3834.1,0.65498212]
[1641376257947,1.30435,3834.3,3834.2,0.3]
[1641376258947,1.60435,3834.3,3834.2,0.3]
[1641376259454,4.55225955,3834.3,3834.2,0.3]
[1641376259647,3.24790955,3834.3,3834.2,0.3]
[1641376260906,2.94790955,3834.3,3834.2,0.3]
[1641376261500,3.24790955,3834.3,3834.2,0.3]
[1641376261897,0.3,3834.3,3834.2,0.3]
[1641376262498,3.24790955,3834.3,3834.2,0.3]
[1641376262698,2.94790955,3834.3,3834.2,0.3]
[1641376263701,2.94790955,3834.4,3834.2,0.3]
[1641376263899,2.94790955,3834.4,3834.2,0.9521206]
[1641376264101,2.94790955,3834.4,3834.3,0.30170527]
[1641376265046,0.3,3834.5,3834.3,0.30170527]
[1641376265446,0.3,3834.7,3834.4,0.65324225]
[1641376265647,2.90113685,3834.8,3834.4,0.65324225]
[1641376265846,2.91128453,3834.8,3834.4,0.95324225]
[1641376266046,4.77101711,3834.8,3834.4,0.95324225]
[1641376266647,0.6521,3834.6,3834.4,0.95324225]
[1641376269903,3.2431535,3834.5,3834.4,0.30113685]
[1641376270505,0.9521,3834.6,3834.4,0.30113685]
[1641376272153,3.19287881,3834.5,3834.4,0.30113685]
[1641376272351,0.9521,3834.6,3834.4,0.30113685]
[1641376274056,3.17670944,3834.5,3834.4,0.30113685]
[1641376274754,0.9521,3834.6,3834.4,0.30113685]
[1641376275057,0.9521,3834.6,3834.4,0.00113685]
[1641376278097,0.9521,3834.6,3834.4,2.91695474]
[1641376278296,0.9521,3834.6,3834.4,0.68013685]
[1641376278499,0.3,3834.6,3834.4,0.68013685]
[1641376278999,4.58702869,3834.8,3834.4,0.68013685]
[1641376279201,5.93372431,3834.8,3834.5,0.6520757]
[1641376279651,3.9568433,3834.8,3834.5,0.6520757]
[1641376280057,2.61014768,3834.8,3834.5,0.6520757]
[1641376280856,2.61014768,3834.8,3834.6,1.3041256]
[1641376281257,2.6,3834.8,3834.6,1.6041256]
[1641376281456,2.94751591,3834.7,3834.6,1.6041256]
[1641376282557,2.9,3834.8,3834.6,1.6041256]
[1641376283412,2.9475273,3834.7,3834.6,1.6041256]
[1641376296050,2.6,3834.8,3834.6,1.6041256]
[1641376298251,2.94743896,3834.7,3834.6,1.6041256]
[1641376298499,2.94743896,3834.7,3834.6,1.44594004]
[1641376300501,6.6,3834.8,3834.6,1.44594004]
[1641376302359,10.30684652,3834.8,3834.6,1.14594004]
[1641376302549,6.9,3834.8,3834.6,1.14594004]
[1641376302751,2.94752595,3834.7,3834.6,1.14594004]
[1641376304756,6.1915695,3834.7,3834.6,1.14594004]
[1641376306002,2.94752595,3834.7,3834.6,1.14594004]
[1641376306201,2.94752595,3834.7,3833.9,0.0596]
[1641376306202,6.15483662,3834.7,3833.9,0.0596]
[1641376306410,6.15483662,3834.7,3833.7,3.0017]
[1641376306606,6.15483662,3834.7,3834.0,0.00341054]
[1641376307207,6.15483662,3834.7,3833.3,0.00738951]
[1641376307410,0.6523,3834.1,3833.3,0.00738951]
[1641376307608,0.8369,3834.1,3833.3,0.00738951]
[1641376308409,0.65235,3833.8,3833.3,0.00738951]
[1641376308609,1.30472,3833.7,3833.3,0.00738951]
[1641376309111,1.60472,3833.7,3833.3,0.00738951]
[1641376309757,1.3049,3833.5,3833.3,0.00738951]
[1641376310058,0.95246,3833.4,3832.7,0.01080005]
[1641376310256,0.65245,3833.1,3832.7,0.01080005]
[1641376310455,1.35195293,3833.1,3832.7,0.01080005]
[1641376310857,2.30438293,3833.1,3832.7,0.01080005]
[1641376311856,3.21585663,3833.0,3832.7,0.31080005]
[1641376312058,3.21585663,3833.0,3832.7,0.01080005]
[1641376312256,1.49876,3833.0,3832.8,0.01023162]
[1641376312457,1.49876,3833.0,3832.7,0.01080005]
[1641376312658,1.49876,3833.0,3832.5,0.01193689]
[1641376312856,0.8463,3833.0,3832.5,0.01193689]
[1641376313257,1.49878,3833.0,3832.5,0.01193689]
[1641376313504,3.17515293,3833.1,3832.5,0.01193689]
[1641376313908,3.60138451,3832.9,3832.5,0.01193689]
[1641376314308,3.90138451,3832.9,3832.5,0.01193689]
[1641376314704,2.94888451,3832.8,3832.5,0.01193689]
[1641376315404,3.25125899,3832.7,3832.5,0.01193689]
[1641376315605,0.3,3832.6,3832.5,0.01193689]
[1641376316409,3.24888451,3832.6,3832.5,0.01193689]
[1641376316605,6.57175946,3832.6,3832.5,0.01193689]
[1641376317247,3.24888451,3832.6,3832.5,0.01193689]
[1641376317444,6.47133019,3832.6,3832.5,0.01193689]
[1641376317645,3.24888451,3832.6,3832.5,0.01193689]
[1641376318244,6.61865767,3832.6,3832.5,0.01193689]
[1641376319251,7.27120767,3832.6,3832.5,0.01193689]
[1641376319453,7.43750767,3832.6,3832.5,0.01193689]
[1641376320752,1.29723615,3831.9,3831.8,0.01591586]
[1641376320998,1.59723615,3831.9,3831.8,0.01591586]
[1641376321197,0.3,3831.9,3831.8,0.01591586]
[1641376321599,3.884158,3832.2,3831.8,0.01591586]
[1641376321798,4.184158,3832.2,3831.8,0.01591586]
[1641376322599,0.65263,3832.0,3831.8,0.01591586]
[1641376322998,0.95263,3832.0,3831.8,0.01591586]
[1641376324202,4.16360365,3832.0,3831.8,0.01591586]
[1641376324402,0.95263,3832.0,3831.8,0.01591586]
[1641376325061,0.95263,3832.0,3831.5,0.01762113]
[1641376325259,0.95263,3832.0,3831.3,0.01875798]
[1641376326460,0.3,3832.0,3831.5,0.6525546]
[1641376326662,0.01014768,3832.3,3831.6,3.70556702]
[1641376326861,2.6,3832.0,3831.7,0.379]
[1641376327063,2.9,3832.0,3831.8,3.13681343]
[1641376327262,2.9,3832.0,3831.9,0.379]
[1641376327463,2.9,3832.0,3831.9,3.51312158]
[1641376327865,2.9,3832.0,3831.9,3.51473981]
[1641376331115,2.6,3832.0,3831.9,3.51473981]
[1641376336615,2.6,3832.0,3831.9,18.79473981]
[1641376336817,2.6,3832.0,3831.9,23.52673981]
[1641376337017,2.6,3832.0,3831.9,21.40634743]
[1641376340866,0.01014768,3832.3,3832.1,15.28]
[1641376341068,0.01014768,3832.3,3832.2,25.64416598]
[1641376341269,0.01014768,3832.3,3832.2,25.65780814]
[1641376342070,0.01014768,3832.3,3832.2,26.95856281]
[1641376343067,0.01014768,3832.3,3832.2,22.30780814]
[1641376343269,0.65232,3833.1,3832.2,20.40464216]
[1641376343513,0.65235,3832.9,3832.5,0.3]
[1641376343714,0.65235,3832.9,3832.6,0.379]
[1641376343915,0.01014768,3832.7,3832.6,0.39036847]
[1641376344114,0.01014768,3832.7,3832.6,0.379]
[1641376344915,0.01014768,3832.7,3832.6,1.0313549]
[1641376345116,0.01014768,3832.7,3832.6,1.3313549]
[1641376345317,0.65235,3832.9,3832.6,1.3313549]
[1641376345520,0.65235,3832.9,3832.7,0.3]
[1641376345717,0.65235,3832.9,3832.8,0.379]
[1641376346817,3.6012841,3832.9,3832.8,0.379]
[1641376347016,3.9012841,3832.9,3832.8,0.379]
[1641376347252,3.55235,3832.9,3832.8,0.379]
[1641376347651,6.5012841,3832.9,3832.8,0.379]
[1641376348059,6.5012841,3832.9,3832.7,0.01080005]
[1641376348455,6.5012841,3832.9,3832.4,0.01250532]
[1641376348857,0.65249,3832.8,3832.4,0.01250532]
[1641376349057,3.6014241,3832.8,3832.4,0.01250532]
[1641376349756,0.65249,3832.7,3832.4,0.01250532]
[1641376349960,0.3,3832.6,3832.4,0.01250532]
[1641376350157,0.95248,3832.6,3832.4,0.01250532]
[1641376350901,2.9489341,3832.5,3832.4,0.01250532]
[1641376351907,2.9489341,3832.5,3832.4,0.31250532]
[1641376352107,2.9489341,3832.5,3832.2,0.01364216]
[1641376352307,2.9489341,3832.5,3832.4,0.01250532]
[1641376352507,2.9489341,3832.5,3832.2,0.01364216]
[1641376353713,0.65249,3832.4,3832.2,0.01364216]
[1641376354513,3.26512018,3832.3,3832.2,0.01364216]
[1641376354768,0.65249,3832.4,3832.2,0.01364216]
[1641376354966,0.65249,3832.4,3831.9,0.01534743]
[1641376354967,0.95249,3832.4,3831.9,0.01534743]
[1641376355166,0.95249,3832.4,3832.1,0.01421059]
[1641376355367,0.95249,3832.4,3831.9,0.01534743]
[1641376355768,2.94955565,3832.3,3831.9,0.01534743]
[1641376356071,0.65252,3832.2,3831.9,0.01534743]
[1641376356872,1.10308234,3832.0,3831.9,0.01534743]
[1641376357270,1.40308234,3832.0,3831.9,0.01534743]
[1641376358069,0.3,3832.0,3831.9,0.01534743]
[1641376358505,0.3,3832.3,3831.9,0.39434743]
[1641376358711,0.3,3832.3,3832.0,0.6524359]
[1641376358909,0.65244,3832.4,3832.0,1.04621491]
[1641376359106,0.65244,3832.4,3832.1,0.01421059]
[1641376360007,0.65244,3832.4,3832.2,0.6524354]
[1641376360208,0.3,3832.5,3832.3,0.379]
[1641376360412,0.9979984,3832.8,3832.3,0.39207374]
[1641376360608,0.9979984,3832.8,3832.4,0.01250532]
[1641376360809,2.716793,3832.9,3832.5,0.379]
[1641376361008,2.716793,3832.9,3832.7,0.6523208]
[1641376361211,2.716793,3832.9,3832.8,4.579]
[1641376361408,2.716793,3832.9,3832.8,20.16923162]
[1641376361809,2.716793,3832.9,3832.8,15.96923162]
[1641376362250,2.716793,3832.9,3832.8,1.99370162]
[1641376362652,2.716793,3832.9,3832.8,17.27370162]
[1641376363860,2.716793,3832.9,3832.8,1.99370162]
[1641376365658,2.716793,3832.9,3832.8,17.27370162]
[1641376367402,5.316793,3832.9,3832.8,17.27370162]
[1641376367804,5.316793,3832.9,3832.8,1.99370162]
[1641376370049,5.316793,3832.9,3832.8,17.27370162]
[1641376370846,5.316793,3832.9,3832.8,1.99370162]
[1641376377354,5.316793,3832.9,3832.8,0.68923162]
[1641376380360,5.316793,3832.9,3832.8,15.96923162]
[1641376382205,5.316793,3832.9,3832.8,0.68923162]
[1641376382401,5.316793,3832.9,3832.8,15.96923162]
[1641376383302,5.316793,3832.9,3832.8,0.68923162]
[1641376383906,5.316793,3832.9,3832.8,15.96923162]
[1641376384105,5.316793,3832.9,3832.8,0.68923162]
[1641376384504,5.316793,3832.9,3832.8,15.96923162]
[1641376385756,5.316793,3832.9,3832.8,0.68923162]
[1641376386153,5.316793,3832.9,3832.8,15.96923162]
[1641376387362,5.316793,3832.9,3832.8,0.68923162]
[1641376389912,5.316793,3832.9,3832.8,15.96923162]
[1641376390313,5.316793,3832.9,3832.8,0.68923162]
[1641376390509,5.316793,3832.9,3832.8,15.96923162]
[1641376391413,5.316793,3832.9,3832.8,15.959]
[1641376392458,5.316793,3832.9,3832.8,0.679]
[1641376394261,2.037793,3832.8,3832.7,1.3046208]
[1641376394461,2.037793,3832.8,3832.7,16.5846208]
[1641376394663,2.037793,3832.8,3832.7,16.97442085]
[1641376396316,2.037793,3832.8,3832.7,17.27442085]
[1641376397925,2.037793,3832.8,3832.7,0.38980005]
[1641376398123,2.337793,3832.8,3832.7,0.38980005]
[1641376399225,5.28709674,3832.8,3832.7,0.38980005]
[1641376400465,4.98709674,3832.8,3832.7,0.38980005]
[1641376400860,4.98709674,3832.8,3832.7,0.68980005]
[1641376401066,4.98709674,3832.8,3832.7,18.96980005]
[1641376401961,4.98709674,3832.8,3832.7,19.62205005]
[1641376402363,2.037793,3832.8,3832.7,19.62205005]
[1641376402764,2.037793,3832.8,3832.7,1.34205005]
[1641376403508,4.98680744,3832.8,3832.7,1.34205005]
[1641376403705,4.98680744,3832.8,3832.7,0.68980005]
[1641376404209,4.98680744,3832.8,3832.7,0.38980005]
[1641376405313,4.98680744,3832.8,3832.7,15.66980005]
[1641376405708,4.98680744,3832.8,3832.7,15.96980005]
[1641376405911,4.98680744,3832.8,3832.7,0.68980005]
[1641376406111,4.98680744,3832.8,3832.7,1.04212005]
[1641376406310,4.98680744,3832.8,3832.7,0.38980005]
[1641376411114,5.28680744,3832.8,3832.7,0.38980005]
[1641376411318,8.43303411,3832.8,3832.7,0.38980005]
[1641376412218,5.28680744,3832.8,3832.7,0.38980005]
[1641376412617,8.45365174,3832.8,3832.7,0.38980005]
[1641376413021,5.28680744,3832.8,3832.7,0.38980005]
[1641376413622,8.44136122,3832.8,3832.7,0.38980005]
[1641376413820,5.28680744,3832.8,3832.7,0.38980005]
[1641376414223,8.45651567,3832.8,3832.7,0.38980005]
[1641376414423,5.28680744,3832.8,3832.7,0.38980005]
[1641376414855,8.45048562,3832.8,3832.7,0.38980005]
[1641376416059,5.28680744,3832.8,3832.7,0.38980005]
[1641376417360,2.337793,3832.8,3832.7,0.38980005]
[1641376417963,2.037793,3832.8,3832.7,0.38980005]
[1641376418170,0.65222,3833.4,3832.9,6.3]
[1641376418415,5.74868073,3833.7,3833.3,4.74408139]
[1641376418619,1.32537178,3833.7,3833.6,22.962]
[1641376418822,0.01014768,3834.2,3833.9,0.65197]
[1641376419021,0.01014768,3834.2,3834.1,7.132]
[1641376419220,6.61252289,3834.8,3834.1,7.511]
[1641376419420,6.61252289,3834.8,3834.5,4.732]
[1641376419620,6.61252289,3834.8,3834.6,16.3109518]
[1641376419921,5.28715111,3834.8,3834.6,16.3109518]
[1641376420121,5.28715111,3834.8,3834.6,1.6829118]
[1641376420320,5.28715111,3834.8,3834.6,0.379]
[1641376421721,2.94836516,3834.7,3834.6,0.379]
[1641376423665,5.58715111,3834.8,3834.6,0.379]
[1641376424063,2.94835919,3834.7,3834.6,0.379]
[1641376428116,5.54835919,3834.7,3834.6,0.379]
[1641376428418,2.6,3834.7,3834.6,0.379]
[1641376428618,2.6,3834.7,3834.6,1.03099]
[1641376429952,2.6,3834.7,3834.6,4.0161596]
[1641376430552,2.6,3834.7,3834.6,8.7481596]
[1641376430752,2.6,3834.7,3834.6,24.0281596]
[1641376432358,2.6,3834.7,3834.6,24.3281596]
[1641376432759,2.6,3834.7,3834.6,24.0281596]
[1641376436823,2.6,3834.7,3834.6,24.3281596]
[1641376440361,2.6,3834.7,3834.6,21.04299]
[1641376440562,2.6,3834.7,3834.6,5.76299]
[1641376441416,2.6,3834.7,3834.6,24.10462221]
[1641376441618,2.6,3834.7,3834.6,24.40462221]
[1641376442414,2.6,3834.7,3834.6,9.12462221]
[1641376442817,2.6,3834.7,3834.6,21.34299]
[1641376446375,2.6,3834.7,3834.6,6.06299]
[1641376449411,2.6,3834.7,3834.6,5.76299]
[1641376449412,5.96749088,3834.7,3834.6,5.76299]
[1641376449612,6.26749088,3834.7,3834.6,0.379]
[1641376449812,2.9,3834.7,3834.0,1.68306]
[1641376450213,2.9,3834.7,3834.1,0.00284212]
[1641376451714,1.41762031,3834.2,3834.1,0.00284212]
[1641376459658,1.41762031,3834.2,3834.1,0.38184212]
[1641376460259,5.77338925,3834.7,3834.1,0.38184212]
[1641376460455,5.72500102,3834.7,3834.1,0.38184212]
[1641376460655,5.6542819,3834.7,3834.2,0.00227369]
[1641376461456,1.24368695,3834.3,3834.2,0.00227369]
[1641376465917,2.52928088,3834.7,3834.2,0.00227369]
[1641376466118,2.52928088,3834.7,3834.4,0.65205]
[1641376466321,2.52928088,3834.7,3834.5,0.379]
[1641376467958,2.52928088,3834.7,3834.6,0.652]
[1641376468258,2.52928088,3834.7,3834.6,1.031]
[1641376469264,5.47711523,3834.7,3834.6,1.031]
[1641376470463,2.52928088,3834.7,3834.6,1.031]
[1641376471106,5.47708637,3834.7,3834.6,0.379]
[1641376472911,2.52928088,3834.7,3834.6,0.379]
[1641376477063,5.72412162,3834.7,3834.6,0.379]
[1641376478068,6.02412162,3834.7,3834.6,0.379]
[1641376481214,6.02412162,3834.7,3834.2,1.30416]
[1641376481413,6.02412162,3834.7,3834.3,0.65207]
[1641376481612,6.02412162,3834.7,3834.3,0.65377527]
[1641376481812,6.02412162,3834.7,3834.4,0.00113685]
[1641376483060,2.94797141,3834.6,3834.4,0.00113685]
[1641376484463,3.48137088,3834.7,3834.4,0.00113685]
[1641376485064,2.94798478,3834.6,3834.4,0.00113685]
[1641376488005,2.94798478,3834.6,3834.4,1.30525685]
[1641376488207,2.94798478,3834.6,3834.5,0.379]
[1641376488810,3.24798478,3834.6,3834.5,0.379]
[1641376489010,2.94798478,3834.6,3834.5,0.379]
[1641376489211,2.94798478,3834.6,3834.5,1.68297]
[1641376490660,3.24798478,3834.6,3834.5,1.68297]
[1641376491461,3.24798478,3834.6,3834.5,0.379]
[1641376492667,6.37713203,3834.6,3834.5,0.379]
[1641376492866,3.24798478,3834.6,3834.5,0.379]
[1641376493069,2.94798478,3834.6,3834.5,0.379]
[1641376494912,2.52928088,3834.7,3834.6,0.65202]
[1641376495112,2.52928088,3834.7,3834.6,1.03102]
[1641376496016,5.47704527,3834.7,3834.6,1.03102]
[1641376496212,5.47704527,3834.7,3834.6,0.379]
[1641376497256,8.65548729,3834.7,3834.6,0.379]
[1641376497852,5.47704527,3834.7,3834.6,0.379]
[1641376498662,5.77704527,3834.7,3834.6,0.379]
[1641376499860,5.47704527,3834.7,3834.6,0.379]
[1641376500461,8.68188329,3834.7,3834.6,0.379]
[1641376502307,5.47704527,3834.7,3834.6,0.379]
[1641376504114,8.66612603,3834.7,3834.6,0.379]
[1641376504314,5.47704527,3834.7,3834.6,0.379]
[1641376506860,8.59519168,3834.7,3834.6,0.379]
[1641376507562,8.59931953,3834.7,3834.6,0.379]
[1641376507961,8.60026687,3834.7,3834.6,0.379]
[1641376510232,5.47704527,3834.7,3834.6,0.379]
[1641376511034,8.65917805,3834.7,3834.6,0.379]
[1641376512967,5.47704527,3834.7,3834.6,0.379]
[1641376513471,8.62178204,3834.7,3834.6,0.379]
[1641376515271,5.47704527,3834.7,3834.6,0.379]
[1641376522070,2.52928088,3834.7,3834.6,0.379]
[1641376522868,2.52928088,3834.7,3834.6,9.07566484]
[1641376523069,2.52928088,3834.7,3834.6,24.65566484]
[1641376523268,4.0,3834.8,3834.7,6.3]
[1641376523526,4.0,3834.8,3834.7,28.34284]
[1641376524826,4.0,3834.8,3834.7,22.04284]
[1641376530474,6.6,3834.8,3834.7,22.04284]
[1641376531714,4.0,3834.8,3834.7,22.04284]
[1641376538630,10.0,3835.0,3834.9,15.28]
[1641376538832,10.0,3835.0,3834.9,21.0428]
[1641376539036,10.0,3835.0,3834.9,22.994607]
[1641376539433,10.0,3835.0,3834.9,23.87988033]
[1641376540931,10.0,3835.0,3834.9,8.59988033]
[1641376541131,10.0,3835.0,3834.9,12.00585499]
[1641376541632,10.2,3835.0,3834.9,12.00585499]
[1641376541832,10.2,3835.0,3834.9,27.28585499]
[1641376545066,4.98611,3835.0,3834.9,27.28585499]
[1641376545667,0.01014768,3835.2,3835.1,15.28]
[1641376545941,0.01014768,3835.2,3835.1,21.04277]
[1641376546226,0.01014768,3835.2,3835.1,22.04277]
[1641376547427,1.2736619,3836.2,3835.5,1.3035548]
[1641376547630,1.2736619,3836.2,3835.7,4.732]
[1641376547827,0.00852635,3836.1,3835.9,0.65178]
[1641376548033,0.00852635,3836.1,3836.0,0.379]
[1641376548230,1.2736619,3836.2,3836.0,0.379]
[1641376548429,1.1879,3836.6,3836.0,3.46188808]
[1641376548629,0.68065959,3836.9,3836.0,3.46789681]
[1641376548831,0.01080004,3836.5,3836.0,0.379]
[1641376549230,0.01023162,3836.4,3836.0,1.68247]
[1641376549430,1.15773931,3836.3,3836.0,1.68247]
[1641376549667,1.16740251,3836.3,3836.0,1.68247]
[1641376549867,0.00909477,3836.2,3836.0,1.68247]
[1641376550269,0.00852635,3836.1,3836.0,1.68247]
[1641376550473,0.06278566,3836.3,3836.1,2.2]
[1641376550671,0.06278566,3836.3,3836.0,3.63767]
[1641376550672,0.06278566,3836.3,3836.2,0.379]
[1641376551068,0.06392251,3836.3,3836.2,0.379]
[1641376552077,2.94757996,3836.3,3836.2,0.379]
[1641376552670,2.94757996,3836.3,3836.2,1.03077]
[1641376553070,0.00113685,3836.3,3836.2,1.03077]
[1641376554733,0.00113685,3836.3,3836.2,2.02425957]
[1641376559074,0.00113685,3836.3,3836.2,1.37248957]
[1641376560274,0.00113685,3836.3,3836.2,0.379]
[1641376561422,0.00113685,3836.3,3836.2,1.51974291]
[1641376567785,0.00113685,3836.3,3836.2,0.479]
[1641376568933,5.40113685,3836.3,3836.1,0.65174]
[1641376569126,3.4394806,3836.2,3834.8,0.379]
[1641376569324,3.4394806,3836.2,3834.0,1.6488216]
[1641376569325,4.6418806,3836.2,3834.4,0.379]
[1641376569526,0.0593,3836.1,3834.9,0.00682108]
[1641376569724,0.0593,3836.1,3835.2,0.65203]
[1641376569924,4.6418806,3836.2,3835.2,0.65203]
[1641376570127,1.03946529,3835.7,3835.6,0.88979154]
[1641376570527,1.03946529,3835.7,3835.6,0.89263366]
[1641376571124,1.03946529,3835.7,3835.6,0.99263366]
[1641376571325,2.94639954,3835.7,3835.6,0.99263366]
[1641376572194,0.6519761,3835.9,3835.6,0.94263366]
[1641376572393,0.6519761,3835.9,3835.6,0.84263366]
[1641376572596,0.6519761,3835.9,3835.7,0.00227369]
[1641376573602,2.94721717,3835.8,3835.7,0.00227369]
[1641376575701,1.3039561,3835.9,3835.7,0.00227369]
[1641376576923,0.6519761,3835.9,3835.7,0.00227369]
[1641376577324,2.94721676,3835.8,3835.7,0.00227369]
[1641376579779,0.66204158,3836.1,3835.7,0.00227369]
[1641376580377,0.66204158,3836.1,3835.8,0.6519]
[1641376580779,3.79808546,3836.1,3835.9,0.00113685]
[1641376581185,3.78793778,3836.1,3835.9,0.00113685]
[1641376581785,3.13813509,3836.0,3835.9,0.00113685]
[1641376581990,2.94712577,3836.0,3835.9,0.00113685]
[1641376582188,3.59905767,3836.0,3835.7,0.00227369]
[1641376583288,0.6519319,3836.0,3835.7,0.00227369]
[1641376584134,1.33254753,3836.2,3835.7,0.00227369]
[1641376584331,1.33254753,3836.2,3835.9,0.65186]
[1641376585133,0.68066633,3836.2,3835.9,0.65186]
[1641376586935,0.68066633,3836.2,3836.0,3.06288058]
[1641376587182,0.01014768,3836.8,3836.1,0.379]
[1641376587375,0.01014768,3836.8,3836.2,4.64693948]
[1641376587576,0.01014768,3836.8,3836.3,0.379]
[1641376587577,0.00284212,3836.6,3836.3,0.379]
[1641376587977,0.00227369,3836.5,3836.3,0.379]